fUST/lending_fUST_20250707
["ID","MTS","AMOUNT","RATE_DAILY","PERIOD"]
[370054889,1751868577833,-460.0,0.00017022,2]
[370054890,1751868577855,-460.0,0.00017022,2]
[370054891,1751868577876,-461.52463118,0.00017022,2]
[370054892,1751868577898,-180.00788025,0.00017022,2]
[370054893,1751868577920,-460.0,0.00017022,2]
[370054894,1751868577941,-460.0,0.00017022,2]
[370054895,1751868577963,-460.0,0.00017022,2]
[370054896,1751868577985,-460.0,0.00017022,2]
[370054897,1751868578009,-460.0,0.00017022,2]
[370054898,1751868578035,-460.0,0.00017022,2]
[370054899,1751868578057,-460.0,0.00017022,2]
[370054900,1751868578082,-460.0,0.00017022,2]
[370054901,1751868578106,-460.0,0.00017022,2]
[370054902,1751868578129,-460.0,0.00017022,2]
[370054903,1751868578153,-460.0,0.00017022,2]
[370054904,1751868578177,-693.22,0.00017022,2]
[370054905,1751868578201,-500.0,0.00017022,2]
[370054906,1751868578224,-460.0,0.00017022,2]
[370054907,1751868578247,-460.0,0.00017022,2]
[370054908,1751868578270,-460.0,0.00017022,2]
[370054909,1751868578293,-460.0,0.00017022,2]
[370054910,1751868578316,-460.0,0.00017022,2]
[370054911,1751868578343,-460.0,0.00017022,2]
[370054912,1751868578367,-460.0,0.00017022,2]
[370054913,1751868578391,-514.89106887,0.00017022,2]
[370054914,1751868578414,-460.0,0.00017022,2]
[370054915,1751868578439,-460.0,0.00017022,2]
[370054916,1751868578463,-460.0,0.00017022,2]
[370054917,1751868578489,-460.0,0.00017022,2]
[370054918,1751868578515,-460.0,0.00017022,2]
[370054919,1751868578540,-460.0,0.00017022,2]
[370054920,1751868578566,-460.0,0.00017022,2]
[370054921,1751868578590,-460.0,0.00017023,2]
[370054922,1751868578616,-460.68620381,0.00017023,2]
[370054923,1751868578644,-469.44371679,0.00017023,2]
[370054924,1751868578675,-460.0,0.00017023,2]
[370054925,1751868578699,-460.0,0.00017023,2]
[370054926,1751868578722,-460.0,0.00017023,2]
[370054927,1751868578744,-460.0,0.00017023,2]
[370054928,1751868578766,-460.0,0.00017023,2]
[370054929,1751868578790,-463.19352598,0.00017023,2]
[370054930,1751868578812,-460.0,0.00017023,2]
[370054931,1751868578835,-460.0,0.00017023,2]
[370054932,1751868578858,-460.0,0.00017023,2]
[370054933,1751868578882,-374.20561355,0.00017023,2]
[370054934,1751868578904,-460.0,0.00017023,2]
[370054935,1751868578925,-460.0,0.00017023,2]
[370054936,1751868579069,-460.0,0.00017023,2]
[370054937,1751868579094,-460.0,0.00017023,2]
[370054938,1751868579116,-332.18585495,0.00017023,2]
[370054939,1751868579138,-500.0,0.00017023,2]
[370054940,1751868579159,-2239.92682023,0.00017024,2]
[370054941,1751868579180,-300.12200143,0.00017073,2]
[370054942,1751868579201,-500.0,0.00017073,2]
[370054943,1751868579223,-806.76760506,0.00017197,2]
[370054944,1751868579244,-502.04931641,0.00017273,2]
[370054945,1751868579264,-500.0,0.00017273,2]
[370054946,1751868579284,-162.52386642,0.00017273,2]
[370054947,1751868579304,-500.90193326,0.00017273,2]
[370054948,1751868579325,-638.91656296,0.00017273,2]
[370054949,1751868579346,-500.0,0.00017273,2]
[370054950,1751868579367,-500.0,0.00017273,2]
[370054951,1751868579387,-500.0,0.00017273,2]
[370054952,1751868579409,-500.0,0.00017273,2]
[370054953,1751868579429,-500.0,0.00017273,2]
[370054954,1751868579451,-460.0,0.00017292,2]
[370054955,1751868579474,-460.0,0.00017292,2]
[370054956,1751868579497,-460.0,0.00017292,2]
[370054957,1751868579521,-460.0,0.00017292,2]
[370054958,1751868579543,-560.2520953,0.00017292,2]
[370054959,1751868579565,-460.0,0.00017292,2]
[370054960,1751868579587,-460.0,0.00017292,2]
[370054961,1751868579609,-359.02237354,0.00017292,2]
[370054962,1751868579634,-460.0,0.00017292,2]
[370054963,1751868579660,-460.0,0.00017292,2]
[370054964,1751868579682,-460.0,0.00017292,2]
[370054965,1751868579704,-460.0,0.00017292,2]
[370054966,1751868579726,-460.0,0.00017292,2]
[370054967,1751868579749,-460.0,0.00017292,2]
[370054968,1751868579772,-460.0,0.00017292,2]
[370054969,1751868579793,-289.08433412,0.00017292,2]
[370054970,1751868579815,-392.95374725,0.00017292,2]
[370054971,1751868579837,-460.0,0.00017293,2]
[370054972,1751868579858,-460.0,0.00017293,2]
[370054973,1751868579881,-460.0,0.00017293,2]
[370054974,1751868579903,-535.73,0.00017293,2]
[370054975,1751868579924,-460.0,0.00017293,2]
[370054976,1751868579946,-460.0,0.00017293,2]
[370054977,1751868579968,-606.37567094,0.00017293,2]
[370054978,1751868579989,-466.0159401,0.00017293,2]
[370054979,1751868580011,-460.0,0.00017293,2]
[370054980,1751868580036,-412.09179061,0.00017293,2]
[370054981,1751868580058,-460.0,0.00017293,2]
[370054982,1751868580080,-509.00980804,0.00017293,2]
[370054983,1751868580103,-366.53,0.00017293,2]
[370054984,1751868580125,-463.95617707,0.00017293,2]
[370054985,1751868580148,-460.0,0.00017293,2]
[370054986,1751868580171,-460.0,0.00017293,2]
[370054987,1751868580196,-460.0,0.00017293,2]
[370054988,1751868580221,-474.2813392,0.00017293,2]
[370054989,1751868580243,-460.0,0.00017293,2]
[370054990,1751868580267,-460.0,0.00017293,2]
[370054991,1751868580292,-460.0,0.00017293,2]
[370054992,1751868580315,-460.0,0.00017293,2]
[370054993,1751868580340,-460.0,0.00017293,2]
[370054994,1751868580364,-460.0,0.00017293,2]
[370054995,1751868580389,-460.0,0.00017293,2]
[370054996,1751868580414,-460.0,0.00017293,2]
[370054997,1751868580436,-460.0,0.00017293,2]
[370054998,1751868580461,-606.19,0.00017293,2]
[370054999,1751868580486,-460.0,0.00017293,2]
[370055000,1751868580508,-502.75,0.00017293,2]
[370055001,1751868580530,-460.0,0.00017293,2]
[370055002,1751868580552,-460.0,0.00017293,2]
[370055003,1751868580574,-462.29544364,0.00017293,2]
[370055004,1751868580596,-420.86217615,0.00017293,2]
[370055005,1751868580619,-250.99537111,0.00017293,2]
[370055006,1751868580640,-460.0,0.00017293,2]
[370055007,1751868580662,-460.0,0.00017293,2]
[370055008,1751868580686,-500.0,0.00017293,2]
[370055009,1751868580708,-460.0,0.00017293,2]
[370055010,1751868580736,-460.0,0.00017293,2]
[370055011,1751868580762,-460.0,0.00017293,2]
[370055012,1751868580784,-460.0,0.00017293,2]
[370055013,1751868580807,-460.0,0.00017293,2]
[370055014,1751868580830,-460.0,0.00017293,2]
[370055015,1751868580852,-460.0,0.00017293,2]
[370055016,1751868580874,-460.0,0.00017293,2]
[370055017,1751868580897,-460.0,0.00017293,2]
[370055018,1751868580918,-460.0,0.00017293,2]
[370055019,1751868580940,-460.0,0.00017293,2]
[370055020,1751868580962,-460.0,0.00017293,2]
[370055021,1751868580985,-460.0,0.00017293,2]
[370055022,1751868581007,-460.0,0.00017293,2]
[370055023,1751868581031,-460.0,0.00017293,2]
[370055024,1751868581052,-460.0,0.00017293,2]
[370055025,1751868581075,-460.0,0.00017293,2]
[370055026,1751868581098,-460.0,0.00017293,2]
[370055027,1751868581120,-463.54414714,0.00017293,2]
[370055028,1751868581142,-460.0,0.00017293,2]
[370055029,1751868581164,-460.0,0.00017293,2]
[370055030,1751868581187,-460.0,0.00017293,2]
[370055031,1751868581209,-460.0,0.00017293,2]
[370055032,1751868581233,-460.0,0.00017293,2]
[370055033,1751868581256,-460.0,0.00017293,2]
[370055034,1751868581279,-460.0,0.00017293,2]
[370055035,1751868581302,-467.8414401,0.00017293,2]
[370055036,1751868581327,-460.0,0.00017293,2]
[370055037,1751868581352,-460.0,0.00017293,2]
[370055038,1751868581376,-460.0,0.00017293,2]
[370055039,1751868581397,-460.0,0.00017293,2]
[370055040,1751868581420,-460.0,0.00017293,2]
[370055041,1751868581442,-460.0,0.00017293,2]
[370055042,1751868581465,-460.0,0.00017293,2]
[370055043,1751868581489,-460.0,0.00017293,2]
[370055044,1751868581511,-460.0,0.00017293,2]
[370055045,1751868581535,-460.0,0.00017293,2]
[370055046,1751868581556,-460.0,0.00017293,2]
[370055047,1751868581577,-460.0,0.00017293,2]
[370055048,1751868581598,-573.26179542,0.00017293,2]
[370055049,1751868581619,-460.0,0.00017293,2]
[370055050,1751868581639,-460.0,0.00017293,2]
[370055051,1751868581662,-460.0,0.00017293,2]
[370055052,1751868581683,-460.0,0.00017293,2]
[370055053,1751868581706,-460.0,0.00017293,2]
[370055054,1751868581728,-463.32003972,0.00017293,2]
[370055055,1751868581750,-460.0,0.00017293,2]
[370055056,1751868581770,-460.0,0.00017293,2]
[370055057,1751868581791,-460.0,0.00017293,2]
[370055058,1751868581925,-460.0,0.00017293,2]
[370055059,1751868581948,-460.0,0.00017293,2]
[370055060,1751868581970,-460.0,0.00017293,2]
[370055061,1751868581992,-530.04015587,0.00017294,2]
[370055062,1751868582014,-462.73653969,0.00017294,2]
[370055063,1751868582040,-466.29806474,0.00017294,2]
[370055064,1751868582063,-460.0,0.00017294,2]
[370055065,1751868582085,-460.0,0.00017294,2]
[370055066,1751868582110,-460.0,0.00017294,2]
[370055067,1751868582131,-460.0,0.00017294,2]
[370055068,1751868582156,-460.0,0.00017294,2]
[370055069,1751868582179,-460.0,0.00017294,2]
[370055070,1751868582202,-500.0,0.00017294,2]
[370055071,1751868582224,-460.0,0.00017294,2]
[370055072,1751868582246,-460.0,0.00017294,2]
[370055073,1751868582271,-460.0,0.00017294,2]
[370055074,1751868582295,-461.53552279,0.00017294,2]
[370055075,1751868582318,-460.0,0.00017294,2]
[370055076,1751868582343,-460.0,0.00017294,2]
[370055077,1751868582366,-460.0,0.00017294,2]
[370055078,1751868582389,-460.0,0.00017294,2]
[370055079,1751868582415,-460.0,0.00017294,2]
[370055080,1751868582440,-460.0,0.00017294,2]
[370055081,1751868582464,-466.20020008,0.00017294,2]
[370055082,1751868582492,-460.0,0.00017294,2]
[370055083,1751868582515,-460.0,0.00017294,2]
[370055084,1751868582538,-460.0,0.00017294,2]
[370055085,1751868582561,-490.60559635,0.00017294,2]
[370055086,1751868582585,-512.39,0.00017294,2]
[370055087,1751868582610,-460.0,0.00017294,2]
[370055088,1751868582635,-460.0,0.00017294,2]
[370055089,1751868582661,-557.75,0.00017294,2]
[370055090,1751868582686,-460.0,0.00017294,2]
[370055091,1751868582711,-444.65,0.00017294,2]
[370055092,1751868582735,-460.0,0.00017294,2]
[370055093,1751868582762,-464.79158474,0.00017294,2]
[370055094,1751868582784,-460.0,0.00017294,2]
[370055095,1751868582806,-460.0,0.00017294,2]
[370055096,1751868582829,-460.0,0.00017294,2]
[370055097,1751868582850,-460.0,0.00017294,2]
[370055098,1751868582872,-460.0,0.00017294,2]
[370055099,1751868582894,-403.6509934,0.00017294,2]
[370055100,1751868582920,-460.0,0.00017294,2]
[370055101,1751868582942,-460.0,0.00017294,2]
[370055102,1751868582965,-460.0,0.00017294,2]
[370055103,1751868582988,-460.0,0.00017294,2]
[370055104,1751868583012,-460.0,0.00017294,2]
[370055105,1751868583038,-461.99037351,0.00017294,2]
[370055106,1751868583063,-460.0,0.00017294,2]
[370055107,1751868583087,-450.28938783,0.00017295,2]
[370055108,1751868583113,-460.0,0.00017295,2]
[370055109,1751868583137,-461.92396548,0.00017295,2]
[370055110,1751868583161,-464.49736192,0.00017295,2]
[370055111,1751868583188,-463.85952626,0.00017295,2]
[370055112,1751868583213,-460.0,0.00017295,2]
[370055113,1751868583238,-460.0,0.00017295,2]
[370055114,1751868583263,-460.0,0.00017295,2]
[370055115,1751868583288,-460.0,0.00017295,2]
[370055116,1751868583310,-460.0,0.00017295,2]
[370055117,1751868583333,-460.0,0.00017295,2]
[370055118,1751868583357,-460.0,0.00017295,2]
[370055119,1751868583378,-462.70844024,0.00017295,2]
[370055120,1751868583400,-338.85928075,0.00017295,2]
[370055121,1751868583422,-155.66144773,0.00017295,2]
[370055122,1751868583444,-362.34885631,0.00017295,2]
[370055123,1751868583465,-511.84991775,0.00017295,2]
[370055124,1751868583486,-464.46986126,0.00017295,2]
[370055125,1751868583508,-460.0,0.00017295,2]
[370055126,1751868583531,-460.0,0.00017295,2]
[370055127,1751868583552,-460.0,0.00017295,2]
[370055128,1751868583574,-460.0,0.00017295,2]
[370055129,1751868583595,-460.0,0.00017295,2]
[370055130,1751868583619,-460.0,0.00017295,2]
[370055131,1751868583642,-460.0,0.00017295,2]
[370055132,1751868583664,-462.90170371,0.00017295,2]
[370055133,1751868583687,-460.0,0.00017295,2]
[370055134,1751868583709,-460.0,0.00017295,2]
[370055135,1751868583733,-460.0,0.00017295,2]
[370055136,1751868583755,-460.0,0.00017295,2]
[370055137,1751868583781,-460.0,0.00017295,2]
[370055138,1751868583802,-460.0,0.00017295,2]
[370055139,1751868583825,-306.48548895,0.00017295,2]
[370055140,1751868583848,-460.0,0.00017295,2]
[370055141,1751868583872,-460.0,0.00017295,2]
[370055142,1751868583894,-460.0,0.00017295,2]
[370055143,1751868583916,-590.75,0.00017295,2]
[370055144,1751868583938,-460.0,0.00017295,2]
[370055145,1751868583960,-460.0,0.00017295,2]
[370055146,1751868583981,-460.0,0.00017295,2]
[370055147,1751868584003,-460.0,0.00017295,2]
[370055148,1751868584027,-460.0,0.00017295,2]
[370055149,1751868584050,-461.88882606,0.00017295,2]
[370055150,1751868584073,-460.0,0.00017295,2]
[370055151,1751868584096,-311.07528368,0.00017295,2]
[370055157,1751868622099,10000.0,0.00027,120]
[370055158,1751868631891,-300.0,0.00017017,2]
[370055159,1751868631901,-460.0,0.00017018,2]
[370055160,1751868631910,-460.0,0.00017018,2]
[370055161,1751868631920,-460.0,0.00017018,2]
[370055162,1751868631929,-300.0,0.00017018,2]
[370055163,1751868631938,-300.0,0.00017018,2]
[370055164,1751868631948,-518.24325071,0.00017018,2]
[370055165,1751868631960,-240.75674929,0.00017018,2]
[370055166,1751868631969,-47.9518006,0.00017018,2]
[370055167,1751868631981,-603.3581994,0.00017018,2]
[370055168,1751868631990,-460.0,0.00017019,2]
[370055169,1751868632000,-460.0,0.00017019,2]
[370055170,1751868632010,-460.0,0.00017019,2]
[370055171,1751868632020,-460.0,0.00017019,2]
[370055172,1751868632036,-479.80271025,0.00017019,2]
[370055173,1751868632046,-460.0,0.00017019,2]
[370055174,1751868632056,-460.0,0.00017019,2]
[370055175,1751868632065,-460.0,0.00017019,2]
[370055176,1751868632076,-460.0,0.00017019,2]
[370055177,1751868632085,-460.0,0.00017019,2]
[370055178,1751868632095,-462.18647382,0.00017019,2]
[370055179,1751868632104,-460.0,0.00017019,2]
[370055180,1751868632114,-460.0,0.00017019,2]
[370055181,1751868632123,-460.0,0.00017019,2]
[370055182,1751868632133,-460.0,0.00017019,2]
[370055183,1751868632143,-467.73674242,0.00017019,2]
[370055184,1751868632152,-460.0,0.00017019,2]
[370055185,1751868632162,-62.08948975,0.00017019,2]
[370055186,1751868632963,-397.91051025,0.00017019,2]
[370055187,1751868632973,-1103.47,0.00017019,2]
[370055188,1751868632982,-95.21949607,0.00017019,2]
[370055189,1751868632994,-364.78050393,0.00017019,2]
[370055190,1751868633004,-335.00970314,0.0001702,2]
[370055191,1751868633017,-124.99029686,0.0001702,2]
[370055192,1751868633027,-462.99805424,0.0001702,2]
[370055193,1751868633039,-460.0,0.0001702,2]
[370055194,1751868633049,-460.0,0.0001702,2]
[370055195,1751868633059,-460.0,0.0001702,2]
[370055196,1751868633071,-460.0,0.00017022,2]
[370055197,1751868633081,-461.74816754,0.00017022,2]
[370055198,1751868633091,-460.0,0.00017022,2]
[370055199,1751868633102,-460.0,0.00017022,2]
[370055200,1751868633113,-460.0,0.00017022,2]
[370055201,1751868633123,-433.5436509,0.00017022,2]
[370055255,1751868645713,-328.81749507,0.00017018,2]
[370055257,1751868645726,-137.71342338,0.00017018,2]
[370055259,1751868645736,-324.48229626,0.00017019,2]
[370055262,1751868645752,-135.51770374,0.00017019,2]
[370055264,1751868645761,-460.0,0.00017019,2]
[370055266,1751868645771,-460.0,0.00017019,2]
[370055268,1751868645780,-26.4563491,0.00017022,2]
[370055270,1751868645790,-460.0,0.00017292,2]
[370055271,1751868645800,-460.0,0.00017292,2]
[370055274,1751868645812,-651.31,0.00017292,2]
[370055275,1751868645822,-460.0,0.00017293,2]
[370055277,1751868645831,-460.0,0.00017293,2]
[370055279,1751868645841,-460.0,0.00017293,2]
[370055281,1751868645850,-476.16013035,0.00017293,2]
[370055283,1751868645859,-460.0,0.00017293,2]
[370055285,1751868645868,-460.0,0.00017293,2]
[370055287,1751868645878,-460.0,0.00017293,2]
[370055289,1751868645888,-460.0,0.00017293,2]
[370055291,1751868645897,-462.78033701,0.00017293,2]
[370055293,1751868645906,-460.0,0.00017293,2]
[370055295,1751868645916,-460.0,0.00017293,2]
[370055297,1751868645925,-1103.47,0.00017293,2]
[370055299,1751868645935,-460.0,0.00017293,2]
[370055301,1751868645944,-460.0,0.00017293,2]
[370055303,1751868645953,-460.0,0.00017293,2]
[370055304,1751868645963,-460.0,0.00017293,2]
[370055306,1751868645972,-460.0,0.00017294,2]
[370055308,1751868645981,-434.31642269,0.00017294,2]
[370055310,1751868645991,-460.0,0.00017294,2]
[370055311,1751868646002,-460.0,0.00017294,2]
[370055314,1751868646012,-148.92471632,0.00017295,2]
[370055315,1751868646022,-464.93412444,0.00017295,2]
[370055317,1751868646034,-460.0,0.00017295,2]
[370055320,1751868646044,-460.0,0.00017295,2]
[370055322,1751868646053,-460.0,0.00017295,2]
[370055323,1751868646062,-460.0,0.00017295,2]
[370055325,1751868646071,-460.0,0.00017295,2]
[370055327,1751868646081,-460.0,0.00017295,2]
[370055329,1751868646091,-460.0,0.00017295,2]
[370055331,1751868646100,-1119.96341011,0.00017295,2]
[370055333,1751868646115,-283.35163415,0.00017296,2]
[370055335,1751868646125,-464.04316064,0.00017296,2]
[370055337,1751868646134,-460.0,0.00017296,2]
[370055339,1751868646144,-460.0,0.00017296,2]
[370055341,1751868646154,-464.55376081,0.00017296,2]
[370055343,1751868646165,-460.0,0.00017296,2]
[370055345,1751868646177,-465.42717618,0.00017296,2]
[370055348,1751868646187,-460.0,0.00017296,2]
[370055349,1751868646196,-461.77044282,0.00017296,2]
[370055352,1751868646205,-460.0,0.00017296,2]
[370055354,1751868646214,-460.0,0.00017296,2]
[370055356,1751868646224,-460.0,0.00017296,2]
[370055357,1751868646233,-460.0,0.00017296,2]
[370055359,1751868646242,-460.0,0.00017296,2]
[370055361,1751868646252,-460.0,0.00017296,2]
[370055363,1751868646261,-460.0,0.00017296,2]
[370055365,1751868646270,-460.0,0.00017296,2]
[370055367,1751868646280,-460.0,0.00017296,2]
[370055369,1751868646290,-460.0,0.00017296,2]
[370055371,1751868646299,-460.0,0.00017296,2]
[370055373,1751868646309,-460.0,0.00017296,2]
[370055374,1751868646318,-460.0,0.00017296,2]
[370055375,1751868646327,-460.0,0.00017296,2]
[370055376,1751868646337,-460.0,0.00017296,2]
[370055377,1751868646347,-460.0,0.00017296,2]
[370055378,1751868646357,-460.0,0.00017296,2]
[370055380,1751868646366,-460.0,0.00017297,2]
[370055382,1751868646375,-460.0,0.00017297,2]
[370055384,1751868646385,-460.0,0.00017297,2]
[370055386,1751868646394,-460.0,0.00017297,2]
[370055388,1751868646404,-460.0,0.00017297,2]
[370055390,1751868646413,-465.8235676,0.00017297,2]
[370055392,1751868646423,-463.55202689,0.00017297,2]
[370055394,1751868646432,-54435.49597739,0.00017468,2]
[370055396,1751868646442,-376.3038612,0.00017566,2]
[370055398,1751868646452,-460.0,0.00017566,2]
[370055399,1751868646462,-477.24285889,0.00017566,2]
[370055401,1751868646471,-460.0,0.00017566,2]
[370055403,1751868646481,-563.17119099,0.00017566,2]
[370055406,1751868646491,-589.42669101,0.00017566,2]
[370055407,1751868646500,-460.0,0.00017566,2]
[370055409,1751868646510,-460.0,0.00017566,2]
[370055411,1751868646519,-460.0,0.00017566,2]
[370055413,1751868646529,-460.0,0.00017566,2]
[370055415,1751868646539,-460.0,0.00017566,2]
[370055417,1751868646548,-651.31,0.00017566,2]
[370055419,1751868646558,-460.0,0.00017567,2]
[370055421,1751868646567,-235.60757121,0.00017567,2]
[370055423,1751868646577,-562.48,0.00017567,2]
[370055425,1751868646586,-460.0,0.00017567,2]
[370055427,1751868646596,-460.0,0.00017567,2]
[370055429,1751868646605,-460.0,0.00017567,2]
[370055431,1751868646614,-176.66112782,0.00017567,2]
[370055433,1751868646623,-460.0,0.00017567,2]
[370055435,1751868646632,-463.09159219,0.00017567,2]
[370055437,1751868646642,-293.15746901,0.00017567,2]
[370055439,1751868646651,-460.0,0.00017567,2]
[370055441,1751868646661,-460.0,0.00017567,2]
[370055443,1751868646670,-460.0,0.00017567,2]
[370055445,1751868646679,-462.88896733,0.00017567,2]
[370055447,1751868646688,-460.0,0.00017567,2]
[370055449,1751868646698,-460.0,0.00017567,2]
[370055451,1751868646708,-460.0,0.00017567,2]
[370055453,1751868646717,-460.0,0.00017567,2]
[370055456,1751868646727,-460.0,0.00017567,2]
[370055458,1751868646736,-460.0,0.00017567,2]
[370055460,1751868646746,-460.0,0.00017567,2]
[370055462,1751868646755,-460.0,0.00017567,2]
[370055464,1751868646764,-460.0,0.00017567,2]
[370055466,1751868646774,-460.0,0.00017567,2]
[370055468,1751868646785,-465.90116567,0.00017567,2]
[370055470,1751868646794,-460.0,0.00017567,2]
[370055472,1751868646803,-482.34,0.00017567,2]
[370055474,1751868646812,-464.32893636,0.00017567,2]
[370055475,1751868646822,-460.0,0.00017567,2]
[370055477,1751868646831,-461.77173508,0.00017567,2]
[370055479,1751868646840,-460.0,0.00017567,2]
[370055481,1751868646850,-460.0,0.00017567,2]
[370055483,1751868646859,-460.0,0.00017567,2]
[370055485,1751868646869,-460.0,0.00017567,2]
[370055487,1751868646878,-460.0,0.00017567,2]
[370055489,1751868646887,-460.0,0.00017567,2]
[370055491,1751868646897,-460.0,0.00017567,2]
[370055493,1751868646906,-493.90138375,0.00017567,2]
[370055495,1751868646915,-460.0,0.00017567,2]
[370055497,1751868646925,-460.0,0.00017567,2]
[370055499,1751868646934,-468.39793529,0.00017567,2]
[370055501,1751868646943,-274.21514449,0.00017567,2]
[370055503,1751868646953,-460.0,0.00017567,2]
[370055505,1751868646962,-460.0,0.00017567,2]
[370055507,1751868646972,-460.0,0.00017567,2]
[370055509,1751868646981,-482.03,0.00017567,2]
[370055511,1751868646991,-462.65028478,0.00017567,2]
[370055513,1751868647001,-460.0,0.00017567,2]
[370055515,1751868647010,-504.97849825,0.00017567,2]
[370055517,1751868647020,-471.56550586,0.00017567,2]
[370055519,1751868647033,-460.0,0.00017567,2]
[370055521,1751868647042,-460.0,0.00017567,2]
[370055523,1751868647052,-1103.47,0.00017567,2]
[370055525,1751868647062,-460.0,0.00017567,2]
[370055527,1751868647073,-460.0,0.00017567,2]
[370055528,1751868647083,-460.0,0.00017567,2]
[370055529,1751868647092,-460.0,0.00017567,2]
[370055531,1751868647102,-460.0,0.00017568,2]
[370055533,1751868647113,-460.0,0.00017568,2]
[370055534,1751868647123,-460.0,0.00017568,2]
[370055535,1751868647133,-460.0,0.00017568,2]
[370055536,1751868647142,-460.0,0.00017568,2]
[370055537,1751868647152,-460.0,0.00017568,2]
[370055538,1751868647161,-460.0,0.00017568,2]
[370055539,1751868647171,-460.0,0.00017568,2]
[370055540,1751868647180,-460.0,0.00017568,2]
[370055541,1751868647190,-515.94656825,0.00017568,2]
[370055542,1751868647200,-460.0,0.00017568,2]
[370055543,1751868647210,-460.0,0.00017568,2]
[370055544,1751868647219,-460.0,0.00017568,2]
[370055545,1751868647230,-460.0,0.00017568,2]
[370055546,1751868647240,-460.0,0.00017568,2]
[370055547,1751868647249,-460.0,0.00017568,2]
[370055548,1751868647259,-460.0,0.00017568,2]
[370055549,1751868647268,-460.0,0.00017568,2]
[370055550,1751868647278,-460.0,0.00017568,2]
[370055551,1751868647288,-460.0,0.00017568,2]
[370055552,1751868647298,-460.0,0.00017568,2]
[370055553,1751868647308,-460.0,0.00017568,2]
[370055554,1751868647317,-460.0,0.00017568,2]
[370055555,1751868647327,-460.0,0.00017568,2]
[370055556,1751868647337,-460.0,0.00017568,2]
[370055557,1751868647347,-460.0,0.00017568,2]
[370055558,1751868647356,-460.0,0.00017569,2]
[370055559,1751868647365,-460.0,0.00017569,2]
[370055560,1751868647375,-460.0,0.00017569,2]
[370055561,1751868647384,-462.32843226,0.00017569,2]
[370055562,1751868647394,-460.0,0.00017569,2]
[370055563,1751868647404,-460.0,0.00017569,2]
[370055564,1751868647415,-463.81953272,0.00017569,2]
[370055565,1751868647425,-460.0,0.00017569,2]
[370055566,1751868647436,-460.0,0.00017569,2]
[370055567,1751868647445,-460.0,0.00017569,2]
[370055568,1751868647455,-460.0,0.00017569,2]
[370055569,1751868647464,-463.08915243,0.00017569,2]
[370055570,1751868647473,-460.0,0.00017569,2]
[370055571,1751868647482,-460.0,0.00017569,2]
[370055572,1751868647491,-460.0,0.00017569,2]
[370055573,1751868647501,-460.0,0.00017569,2]
[370055574,1751868647511,-460.0,0.00017569,2]
[370055575,1751868647520,-460.0,0.00017569,2]
[370055576,1751868647530,-463.74101799,0.00017569,2]
[370055577,1751868647539,-192.56,0.00017569,2]
[370055578,1751868647549,-464.12482865,0.00017569,2]
[370055579,1751868647559,-462.40111019,0.00017569,2]
[370055580,1751868647570,-463.11485681,0.00017569,2]